Cogmind - Beta 10.2 @@@ ROGUE MODE // 2021.05.14 @ 11:11:40 Player: onyhow Result: Destroyed by B-75 Beast with Heavy Plasma Cannon Performance ------------- Evolutions (4) 2000 Regions Visited (14) 2800 Robots Destroyed (215) 1075 Value Destroyed (8650) 8650 Prototype IDs (38) 760 Alien Tech Used (0) 0 Bonus (2356) 2356 TOTAL SCORE: 17641 Bonus ------- High Alert Combat Kills 409 Follower Combat Kills 247 Entered Garrisons 400 Used RIF Installer 1000 Aligned with FarCom 300 Cogmind --------- Core Integrity 0/850 Matter 300/300 Energy 100/100 System Corruption 4% Temperature Cool (12) Movement Core (50) Location -6/Extension Parts ------- > --- POWER (2) -------- (None) > --- PROPULSION (4) --- (None) > --- UTILITY (7) ------ System Backup Module > --- WEAPON (2) ------- Spear > --- INVENTORY (4) ---- Improved Heat Sink Plasma Cannon Heavy Plasma Cannon Gauss Rifle Peak State ------------ > --- POWER ------------ Improved Deuterium Engine Light Angular Momentum Engine > --- PROPULSION ------- Light Treads Medium Treads Medium Treads Improved Medium Treads > --- UTILITY ---------- Improved Heat Sink Improved Heat Sink High-capacity Storage Unit High-capacity Storage Unit Energy Well Hardened Medium Armor Plating Layered Medium Armor Plating > --- WEAPON ----------- Plasma Cannon Heavy Flak Cannon > --- INVENTORY -------- Light Deuterium Engine Improved Deuterium Engine Angular Momentum Engine Light Treads Improved Medium Treads Improved Gravmag System Cooling System Cooling System Large Storage Unit Improved Light Armor Plating System Backup Module Improved Field Recycling Unit Proton Cannon Heavy Ion Cannon Plasma Cannon Heavy Plasma Cannon Heavy Plasma Cannon Gauss Cannon Magnetic Acceleration Cannon Spear [Rating: 60] Favorites ----------- Power Improved Deuterium Engine Engine Improved Deuterium Engine Power Core Light Nuclear Core Propulsion Light Treads Treads Light Treads Leg Flexi-carbon Leg Wheel Wheel Hover Unit Improved Gravmag System Utility High-capacity Storage Unit Device Improved Heat Sink Storage High-capacity Storage Unit Processor 0b10 Alert Chip Protection Reflective Plating Weapon Gauss Cannon Energy Gun Shock Rifle Energy Cannon Heavy Ion Cannon Ballistic Gun Enhanced Autogun Ballistic Cannon Gauss Cannon Launcher Proton Missile Launcher Slashing Weapon Axe Piercing Weapon Spear Build | -11 -10 -10 -9 -9 -9 -8 -8 -7 -7 -7 -6 -6 -6 -6 ------- Run | Scr Mat Min Mat Min Exi Min Mat Fac Gar Fac Fac Gar Fac Ext Slots Evolved 8 | . . . 2 . . . 2 2 . . 2 . . . Power 1 | . . . . . . . . . . . 1 . . . Propulsion 2 | . . . . . . . 1 1 . . . . . . Utility 5 | . . . 2 . . . 1 1 . . 1 . . . Weapon . | . . . . . . . . . . . . . . . Parts Attached 242 | 7 10 10 42 1 2 1 45 13 21 20 6 12 13 39 Power 29 | 1 4 2 5 . . . 5 2 2 . 1 1 1 5 Engine 20 | 1 4 1 5 . . . 2 1 1 . . 1 1 3 Core 9 | . . 1 . . . . 3 1 1 . 1 . . 2 Reactor . | . . . . . . . . . . . . . . . Propulsion 66 | 2 3 3 8 . . . 16 2 2 6 . 6 4 14 Treads 51 | . 3 3 8 . . . 16 2 2 5 . 6 4 2 Leg 8 | . . . . . . . . . . . . . . 8 Wheel 2 | 2 . . . . . . . . . . . . . . Hover 5 | . . . . . . . . . . 1 . . . 4 Flight . | . . . . . . . . . . . . . . . Utility 81 | 2 2 1 13 1 2 1 16 6 7 10 5 . 4 11 Device 31 | . . . 4 1 . . 8 3 1 5 3 . 1 5 Storage 17 | 2 1 1 4 . 2 . . . 3 1 . . 1 2 Processor 2 | . 1 . . . . . 1 . . . . . . . Hackware . | . . . . . . . . . . . . . . . Protection 31 | . . . 5 . . 1 7 3 3 4 2 . 2 4 Artifact . | . . . . . . . . . . . . . . . Weapon 66 | 2 1 4 16 . . . 8 3 10 4 . 5 4 9 Energy Gun 12 | . . 2 8 . . . 1 . . 1 . . . . Energy Cannon 18 | . . . 1 . . . 3 2 4 1 . 2 3 2 Ballistic Gun 19 | 2 1 1 6 . . . 4 . 2 . . . . 3 Ballistic Cannon 6 | . . . 1 . . . . . . 2 . 1 1 1 Launcher 8 | . . 1 . . . . . 1 4 . . 2 . . Special Weapon . | . . . . . . . . . . . . . . . Impact Weapon . | . . . . . . . . . . . . . . . Slashing Weapon 1 | . . . . . . . . . . . . . . 1 Piercing Weapon 2 | . . . . . . . . . . . . . . 2 Special Melee Weapon . | . . . . . . . . . . . . . . . Unidentified Prototypes 4 | . . . 3 . . . . . . 1 . . . . Parts Lost 76 | . 2 4 8 . . . 6 . 4 6 . 6 6 34 Power 8 | . 1 . . . . . . . . . . 1 1 5 Propulsion 27 | . . 1 1 . . . 1 . 2 3 . 4 1 14 Utility 20 | . . . 2 . . . 3 . 1 2 . . 2 10 Weapon 21 | . 1 3 5 . . . 2 . 1 1 . 1 2 5 Highest Loss Streak 18 | . 1 2 4 . . . 2 . 1 2 . 5 2 18 Average Slot Usage (%) 98 | . 99 99 98 100 100 100 99 99 99 98 98 97 99 94 Engine 7 | . 13 11 10 11 11 11 4 . 1 7 6 6 11 8 Core 2 | . . 2 . . . . 4 6 5 . 4 6 1 3 Treads 25 | . 24 28 21 22 22 22 26 29 29 29 26 23 26 13 Device 10 | . . . 9 17 22 18 10 10 6 12 13 13 13 14 Storage 19 | . 21 14 22 22 22 22 18 15 17 22 20 20 20 19 Processor 4 | . 5 14 3 . . . 8 7 7 . . . . . Protection 8 | . . . 7 4 . 3 7 10 12 8 11 13 12 9 Energy Gun 2 | . . 11 10 11 11 11 . . . 1 . . . . Energy Cannon 3 | . . . . . . . 6 5 6 2 6 5 5 5 Ballistic Gun 7 | . 28 16 11 11 11 11 10 8 6 . . . . 2 Ballistic Cannon 2 | . . . . . . . . . . 10 6 6 6 3 Naked Turns . | . . . . . . . . . . . . . . . Heaviest Build 122 | 15 16 39 69 67 77 83 93 88 92 97 115 108 116 122 Greatest Support 106 | 26 40 40 40 40 40 40 63 86 89 97 97 106 106 106 Greatest Overweight (x) 5 | . . . 2 1 1 2 2 1 1 1 1 3 1 5 Average Overweight (x) . | . . . 1 1 1 1 1 . . . . 1 . 1 Largest Inventory Capacity 20 | 8 10 12 18 18 20 20 20 20 20 20 20 20 20 20 Average Capacity 18 | 6 8 9 16 18 18 20 20 20 20 20 20 20 20 19 Most Carried 20 | 7 8 11 18 18 18 18 20 20 20 20 18 19 20 20 Average Carried 17 | 3 6 8 16 18 17 17 19 19 19 19 17 17 18 17 Final Capacity 20 | 8 8 12 18 18 20 20 20 20 20 20 20 20 20 4 Final Carried 20 | 7 7 11 18 18 18 18 20 20 18 18 17 18 19 4 Class Distribution -------------------- 48% | Hauler-Mutant 36% | Scavenger-Mutant 14% | Mutant Dominant Class ---------------- Mutant | -10/Materials Scavenger-Mutant | -10/Mines Scavenger-Mutant | -9/Materials Mutant | -9/Mines Mutant | -9/Exiles Hauler-Skirmisher | -8/Mines Hauler-Mutant | -8/Materials Hauler-Mutant | -7/Factory Hauler-Mutant | -7/Garrison Hauler-Mutant | -7/Factory Hauler-Mutant | -6/Factory Scavenger-Mutant | -6/Garrison Scavenger-Mutant | -6/Factory Scavenger-Mutant | -6/Extension Resources | -11 -10 -10 -9 -9 -9 -8 -8 -7 -7 -7 -6 -6 -6 -6 ----------- Run | Scr Mat Min Mat Min Exi Min Mat Fac Gar Fac Fac Gar Fac Ext Matter Collected 5059 | 219 354 268 673 46 . 45 745 256 468 500 38 307 395 745 Remotely . | . . . . . . . . . . . . . . . Salvage Created 9030 | 51 378 564 1418 117 . 57 1699 704 1106 826 . 537 479 1094 Parts 455 | 5 23 34 92 13 . 2 82 36 47 38 . 25 20 38 Haulers Intercepted 3 | . 1 . 1 . . . 1 . . . . . . . Recyclers Shooed 1 | . . . . . . . . . . . . . . 1 Parts Field Recycled 40 | . . . . . . . 37 . . . 3 . . . Retrieved Matter 369 | . . . . . . . 337 . . . 32 . . . Parts Self-Destructed . | . . . . . . . . . . . . . . . Prevented . | . . . . . . . . . . . . . . . Kills | -11 -10 -10 -9 -9 -9 -8 -8 -7 -7 -7 -6 -6 -6 -6 ------- Run | Scr Mat Min Mat Min Exi Min Mat Fac Gar Fac Fac Gar Fac Ext Combat Hostiles Destroyed 185 | . 9 14 29 7 . 1 28 14 21 22 . 11 12 17 Guns 92 | . 9 14 29 7 . 1 19 5 3 . . . . 5 Cannons 69 | . . . . . . . 9 7 7 18 . 6 10 12 AOE 21 | . . . . . . . . 2 9 4 . 4 2 . Classes Destroyed 15 | 1 3 . 3 . . 1 1 2 . 2 . 2 . . Worker 1 | . . . . . . . . 1 . . . . . . Builder 3 | . . . . . . . . . . 1 . . . 2 Hauler 3 | . 1 . 1 . . . 1 . . . . . . . Recycler 10 | 1 . 1 3 . . . 2 1 . . . . . 2 Operator 3 | . . . 1 . . . 2 . . . . . . . Watcher 10 | . . . 4 . . . 3 1 . . . . . 2 Swarmer 47 | . 2 6 10 7 . . 3 4 3 1 . 4 3 4 Grunt 77 | . 7 8 9 . . . 15 5 16 9 . 3 3 2 Brawler 1 | . . . . . . . . . . . . 1 . . Duelist 11 | . . . . . . . 1 . 2 4 . . 2 2 Protector 1 | . . . . . . . . . . 1 . . . . Sentry 29 | . . . 10 . . . 9 . . 3 . 1 2 4 Hunter 7 | . . . . . . 1 . 1 . . . 1 . 4 Programmer 11 | . . . . . . . . 4 . 4 . . 2 1 Behemoth 1 | . . . . . . . . . . . . 1 . . Best Kill Streak 9 | 1 4 4 9 4 . 1 7 5 4 5 . 5 3 4 Combat Bots Only 9 | . 4 3 9 4 . 1 7 4 4 5 . 5 3 3 Max Kills in Single Turn 3 | 1 1 1 2 2 . 1 2 2 1 3 . 2 2 2 Gunslinging 1 | . . . 1 1 . . 1 . . . . . . . Exploded 3 | . . . . . . . . 2 1 3 . 2 2 . Melee . | . . . . . . . . . . . . . . . Uniques/NPCs Destroyed . | . . . . . . . . . . . . . . . Combat | -11 -10 -10 -9 -9 -9 -8 -8 -7 -7 -7 -6 -6 -6 -6 -------- Run | Scr Mat Min Mat Min Exi Min Mat Fac Gar Fac Fac Gar Fac Ext Damage Taken 14212 | . 627 756 1557 194 . 120 2189 450 766 1434 . 1187 1007 3925 Core 1684 | . 119 102 173 21 . 22 164 39 77 114 . 71 92 690 Absorbed by Shields . | . . . . . . . . . . . . . . . Core Remaining (%) 58 | 100 . 11 . . . 46 70 . . 67 . . . . Volleys Fired 620 | 2 49 53 90 12 . 5 125 38 60 49 . 28 45 64 Largest 2 | 2 2 2 2 2 . 2 2 2 2 2 . 2 2 2 Hottest 133 | 40 40 60 89 73 . 73 100 90 90 117 . 117 133 133 Shots Fired 1205 | 4 98 105 177 24 . 10 244 72 104 98 . 53 90 126 Gun 704 | 4 98 105 176 24 . 10 164 37 46 17 . . . 23 Cannon 454 | . . . 1 . . . 80 31 34 81 . 34 90 103 Launcher 47 | . . . . . . . . 4 24 . . 19 . . Special . | . . . . . . . . . . . . . . . Kinetic 718 | 4 98 81 86 12 . 5 148 37 46 68 . 25 45 63 Thermal 352 | . . 24 56 . . . 85 31 34 18 . . 41 63 Explosive . | . . . . . . . . . . . . . . . Electromagnetic 135 | . . . 35 12 . 5 11 4 24 12 . 28 4 . Robot Hit Streak 24 | 3 7 10 19 4 . 11 21 19 24 12 . 24 24 10 Robot Miss Streak 5 | 1 3 2 5 2 . . 4 3 3 3 . 2 5 5 Penetration Max 1 | . . . . . . . . . . 1 . 1 . . Secondary Targets 15 | . 3 3 7 1 . . 1 . . . . . . . Max Gunslinging Chain 1 | . 1 1 1 1 . . 1 . . . . . . . Shots Hit Robots 809 | 3 59 75 125 12 . 9 168 45 66 65 . 35 60 87 Core Hits 429 | 2 22 33 52 7 . 3 66 25 40 36 . 28 48 67 Critical Hits 23 | . . . 3 . . . 4 1 1 7 . 3 . 4 Critical Kills 5 | . . . 1 . . . . . . 3 . . . 1 Critical Parts Destroyed 16 | . . . 2 . . . 4 1 1 4 . 1 . 3 Melee Attacks 4 | . . . . . . . . . . . . . . 4 Impact . | . . . . . . . . . . . . . . . Slashing . | . . . . . . . . . . . . . . . Piercing 4 | . . . . . . . . . . . . . . 4 Sneak Attacks . | . . . . . . . . . . . . . . . Combat Hostiles . | . . . . . . . . . . . . . . . Follow-up Attacks . | . . . . . . . . . . . . . . . Damage Inflicted 18736 | 52 707 714 2080 171 . 137 3273 1183 2159 2554 . 1587 1746 2373 Guns 6915 | 52 707 714 2023 171 . 137 1823 291 431 267 . . . 299 Cannons 8861 | . . . 22 . . . 1450 781 669 1668 . 788 1409 2074 Explosions 2960 | . . . 35 . . . . 111 1059 619 . 799 337 . Melee . | . . . . . . . . . . . . . . . Ramming . | . . . . . . . . . . . . . . . Kinetic 8334 | 52 707 505 835 41 . 47 1605 291 431 1499 . 643 574 1104 Thermal 6872 | . . 209 672 . . . 1537 781 669 886 . 60 789 1269 Explosive . | . . . . . . . . . . . . . . . Electromagnetic 3530 | . . . 573 130 . 90 131 111 1059 169 . 884 383 . Impact . | . . . . . . . . . . . . . . . Slashing . | . . . . . . . . . . . . . . . Piercing . | . . . . . . . . . . . . . . . Highest Corruption 4 | . . . . . . . . 3 . 2 . . 1 4 Average Corruption 2 | . . . . . . . . 2 . 1 . . 1 3 Corruption Purged 7 | . . . . . . . . 3 . 4 . . . . Effects 51 | . . . . . . . . 8 . 6 . . . 37 Message Errors 17 | . . . . . . . . 3 . 3 . . . 11 Matter Fused 7 | . . . . . . . . 1 . . . . . 6 Heat Flow Errors 4 | . . . . . . . . 1 . . . . . 3 Energy Discharges 8 | . . . . . . . . 3 . 2 . . . 3 Parts Rejected 1 | . . . . . . . . . . . . . . 1 Data Loss (minor) 8 | . . . . . . . . . . 1 . . . 7 Targeting Errors 6 | . . . . . . . . . . . . . . 6 Overload Shots . | . . . . . . . . . . . . . . . Overflow Damage 226 | . . . . . . . . 7 6 74 . 9 43 87 Projectiles 142 | . . . . . . . . 7 3 4 . . 41 87 Explosions 84 | . . . . . . . . . 3 70 . 9 2 . Melee . | . . . . . . . . . . . . . . . Knockbacks 52 | . . . . . . . . . . 20 . 1 20 11 Impact . | . . . . . . . . . . . . . . . Kinetic 50 | . . . . . . . . . . 19 . 1 20 10 Secondary 2 | . . . . . . . . . . 1 . . . 1 Self-Inflicted Damage 366 | . . . 25 . . . . . 18 165 . 18 140 . Shots 13 | . . . 1 . . . . . 3 3 . 1 5 . Rammed . | . . . . . . . . . . . . . . . Targets Rammed . | . . . . . . . . . . . . . . . Kicked . | . . . . . . . . . . . . . . . Crushed . | . . . . . . . . . . . . . . . Highest Temperature 366 | . 12 120 33 . . . 123 218 73 366 . 6 13 232 Average Temperature 37 | . 6 38 10 . . . 38 24 23 114 . 6 5 36 Received Heat Transfer 3720 | . 276 342 486 . . 12 900 63 324 450 . 180 219 468 Siege Activations . | . . . . . . . . . . . . . . . Robots Corrupted 3 | . . . . . . . . . 2 . . 1 . . Combat Hostiles 3 | . . . . . . . . . 2 . . 1 . . Parts Fried 14 | . . . 3 . . . . . 7 . . 2 2 . Impact Corruptions . | . . . . . . . . . . . . . . . Robots Melted . | . . . . . . . . . . . . . . . Combat Hostiles . | . . . . . . . . . . . . . . . Parts Melted 15 | . . . 1 . . . 7 2 1 . . . 2 2 Heat Transferred 10261 | . . 450 1396 . . . 2331 999 867 830 . 50 1088 2250 Parts Sabotaged . | . . . . . . . . . . . . . . . Parts Stolen . | . . . . . . . . . . . . . . . Parts Stripped . | . . . . . . . . . . . . . . . Power Chain Reactions 4 | . . . 1 . . . . . 1 . . 2 . . Missiles Intercepted . | . . . . . . . . . . . . . . . Alert | -11 -10 -10 -9 -9 -9 -8 -8 -7 -7 -7 -6 -6 -6 -6 ------- Run | Scr Mat Min Mat Min Exi Min Mat Fac Gar Fac Fac Gar Fac Ext Peak Influence 1013 | 5 195 192 495 352 . 30 259 270 1013 579 213 298 196 203 Initial 531 | . 3 12 . 192 . . 11 114 148 531 198 . 156 95 Average 176 | 1 84 46 213 326 . 9 103 128 591 427 189 192 68 99 Maximum Alert Level 3 | . . . 2 1 . . 1 1 3 2 1 1 . 1 Low Security (%) 70 | 100 100 100 59 3 . 100 85 71 18 . 77 37 100 99 Level 1 17 | . . . 20 96 . . 14 28 11 40 22 62 . . Level 2 10 | . . . 20 . . . . . 19 59 . . . . Level 3 2 | . . . . . . . . . 50 . . . . . Level 4 . | . . . . . . . . . . . . . . . Level 5 . | . . . . . . . . . . . . . . . High Security . | . . . . . . . . . . . . . . . Max Security . | . . . . . . . . . . . . . . . Squads Dispatched 28 | . 2 . 3 . . . 1 7 . 8 1 . 3 3 Investigation 8 | . . . 3 . . . . 1 . 2 . . . 2 Extermination 10 | . . . . . . . . 4 . 4 . . 2 . Reinforcement 9 | . 2 . . . . . 1 2 . 1 1 . 1 1 Assault 1 | . . . . . . . . . . 1 . . . . Garrison . | . . . . . . . . . . . . . . . Intercept . | . . . . . . . . . . . . . . . Construction Impeded 3 | . . . . . . . . . . 1 . . 1 1 Haulers Reinforced 1 | . . . . . . . . 1 . . . . . . Stealth | -11 -10 -10 -9 -9 -9 -8 -8 -7 -7 -7 -6 -6 -6 -6 --------- Run | Scr Mat Min Mat Min Exi Min Mat Fac Gar Fac Fac Gar Fac Ext Distress Signals 17 | . 2 . 7 . . . 4 . . 1 . . . 3 Communications Jammed . | . . . . . . . . . . . . . . . Distress Signals . | . . . . . . . . . . . . . . . Times Spotted 303 | . 26 14 53 7 . 1 53 24 29 31 1 13 18 33 Peak Tracking Total 8 | . 4 3 8 4 . 1 8 5 6 5 1 7 3 4 Tactical Retreats 29 | . 2 . 5 . . . 4 1 5 1 . 2 3 6 Traps | -11 -10 -10 -9 -9 -9 -8 -8 -7 -7 -7 -6 -6 -6 -6 ------- Run | Scr Mat Min Mat Min Exi Min Mat Fac Gar Fac Fac Gar Fac Ext Traps Triggered 20 | . 2 . 1 . . . . . 2 4 1 5 3 2 Indirectly 2 | . . . . . . . . . . . . 2 . . Trap Hack Attempts . | . . . . . . . . . . . . . . . Triggered . | . . . . . . . . . . . . . . . Disarmed 3 | . . . . . . . 3 . . . . . . . Reprogrammed . | . . . . . . . . . . . . . . . Reused . | . . . . . . . . . . . . . . . Traps Extracted . | . . . . . . . . . . . . . . . Installed . | . . . . . . . . . . . . . . . Triggered . | . . . . . . . . . . . . . . . Machines | -11 -10 -10 -9 -9 -9 -8 -8 -7 -7 -7 -6 -6 -6 -6 ---------- Run | Scr Mat Min Mat Min Exi Min Mat Fac Gar Fac Fac Gar Fac Ext Machines Disabled 32 | . . . 1 . . . 1 1 5 13 . 1 8 2 Max in Single Turn 8 | . . . 1 . . . 1 1 2 7 . 1 8 1 Garrison Access 2 | . . . . . . . . . . 1 . . 1 . Garrison Relay 3 | . . . . . . . . . 2 . . 1 . . Machines Sabotaged . | . . . . . . . . . . . . . . . Garrisons Compromised . | . . . . . . . . . . . . . . . Overloaded Fab Kills . | . . . . . . . . . . . . . . . Fab Network Shutdowns . | . . . . . . . . . . . . . . . Hacking | -11 -10 -10 -9 -9 -9 -8 -8 -7 -7 -7 -6 -6 -6 -6 --------- Run | Scr Mat Min Mat Min Exi Min Mat Fac Gar Fac Fac Gar Fac Ext Machines Accessed 64 | . 3 1 13 . 2 . 11 10 . 8 1 . 7 8 Terminals 45 | . 2 1 10 . . . 9 6 . 5 . . 4 8 Fabricators 1 | . . . . . . . . 1 . . . . . . Repair Stations 5 | . 1 . 1 . . . . 1 . 1 . . 1 . Recycling Units . | . . . . . . . . . . . . . . . Scanalyzers 7 | . . . 2 . . . 2 1 . 1 . . 1 . Garrison Access 4 | . . . . . . . . 1 . 1 1 . 1 . Total Hacks 174 | . 11 3 40 . 5 . 35 33 . 22 1 . 13 11 Successful 97 | . 5 1 19 . 5 . 21 19 . 11 1 . 8 7 Failed 76 | . 5 2 21 . . . 14 14 . 11 . . 5 4 Catastrophic 23 | . 1 . 4 . . . 6 6 . 4 . . 1 1 Database Lockouts 1 | . 1 . . . . . . . . . . . . . Manual 58 | . 7 . 13 . 1 . 14 13 . 7 . . 3 . Terminals 123 | . 8 3 31 . . . 30 20 . 14 . . 6 11 Fabricators 3 | . . . . . . . . 3 . . . . . . Repair Stations 13 | . 3 . 3 . . . . 2 . 3 . . 2 . Recycling Units . | . . . . . . . . . . . . . . . Scanalyzers 24 | . . . 6 . . . 5 6 . 4 . . 3 . Garrison Access 6 | . . . . . . . . 2 . 1 1 . 2 . Terminal Hacks 58 | . 3 1 11 . 5 . 17 8 . 4 . . 2 7 Record 8 | . . . . . 4 . 1 3 . . . . . . Part Schematic 6 | . 2 . 1 . . . 1 2 . . . . . . Robot Schematic 1 | . . . . . . . . . . . . . 1 . Robot Analysis 1 | . . . . . . . . 1 . . . . . . Prototype ID Bank 7 | . . . 4 . . . 2 . . . . . 1 . Open Door 5 | . . . . . . . . . . . . . . 5 Branch Access Points 3 | . . . 1 . . . 1 1 . . . . . . Emergency Access Points 2 | . . . 1 . . . . . . 1 . . . . Alert Level 3 | . . . 1 . . . 2 . . . . . . . Unreport Threat 3 | . . . . . . . 1 . . 2 . . . . Locate Traps 8 | . . . 1 . . . 4 . . 1 . . . 2 Disarm Traps 1 | . . . . . . . 1 . . . . . . . Maintenance Status 1 | . 1 . . . . . . . . . . . . . Investigation Status 1 | . . . . . . . 1 . . . . . . . Zone Layout 7 | . . 1 2 . . . 3 1 . . . . . . EX-Prototype ID Bank 1 | . . . . . 1 . . . . . . . . . Fabricator Hacks 2 | . . . . . . . . 2 . . . . . . Load Schematic 1 | . . . . . . . . 1 . . . . . . Build 1 | . . . . . . . . 1 . . . . . . Repair Station Hacks 10 | . 2 . 2 . . . . 2 . 2 . . 2 . Scan Component 5 | . 1 . 1 . . . . 1 . 1 . . 1 . Repair 5 | . 1 . 1 . . . . 1 . 1 . . 1 . Recycling Unit Hacks . | . . . . . . . . . . . . . . . Scanalyzer 22 | . . . 6 . . . 4 6 . 4 . . 2 . Insert Component 11 | . . . 3 . . . 2 3 . 2 . . 1 . Analyze 11 | . . . 3 . . . 2 3 . 2 . . 1 . Garrison Access Hacks 5 | . . . . . . . . 1 . 1 1 . 2 . Unlock Access 2 | . . . . . . . . 1 . . 1 . . . Seal Access 2 | . . . . . . . . . . 1 . . 1 . Coupler Status 1 | . . . . . . . . . . . . . 1 . Unauthorized Hacks . | . . . . . . . . . . . . . . . Terminals . | . . . . . . . . . . . . . . . Fabricators . | . . . . . . . . . . . . . . . Repair Stations . | . . . . . . . . . . . . . . . Recycling Units . | . . . . . . . . . . . . . . . Scanalyzers . | . . . . . . . . . . . . . . . Garrison Access . | . . . . . . . . . . . . . . . Data Cores Recovered 2 | . . . 1 . . . 1 . . . . . . . Used . | . . . . . . . . . . . . . . . Hacking Detections 56 | . 3 1 13 . . . 11 10 . 7 . . 7 4 Full Trace Events 5 | . . . 2 . . . . 1 . 1 . . . 1 Feedback Events . | . . . . . . . . . . . . . . . Feedback Blocked . | . . . . . . . . . . . . . . . Robot Schematics Acquired 1 | . . . . . . . . . . . . . 1 . Robots Built . | . . . . . . . . . . . . . . . Matter . | . . . . . . . . . . . . . . . Time . | . . . . . . . . . . . . . . . Total Robot Build Rating . | . . . . . . . . . . . . . . . Part Schematics Acquired 17 | . 2 . 4 . . . 3 5 . 2 . . 1 . Parts Built 1 | . . . . . . . . 1 . . . . . . Matter 124 | . . . . . . . . 124 . . . . . . Time 31 | . . . . . . . . 31 . . . . . . Total Part Build Rating 2 | . . . . . . . . 2 . . . . . . Parts Repaired 5 | . 1 . 1 . . . . 1 . 1 . . 1 . Time 137 | . 13 . 26 . . . . 32 . 16 . . 50 . Parts Recycled . | . . . . . . . . . . . . . . . Recycled Matter . | . . . . . . . . . . . . . . . Retrieved Matter . | . . . . . . . . . . . . . . . Retrieved Components . | . . . . . . . . . . . . . . . Parts Scanalyzed 11 | . . . 3 . . . 2 3 . 2 . . 1 . Part Schematics Acquired 11 | . . . 3 . . . 2 3 . 2 . . 1 . Parts Damaged . | . . . . . . . . . . . . . . . Bothacking | -11 -10 -10 -9 -9 -9 -8 -8 -7 -7 -7 -6 -6 -6 -6 ------------ Run | Scr Mat Min Mat Min Exi Min Mat Fac Gar Fac Fac Gar Fac Ext Used RIF Installer 2 | . . . . . . . . . 1 . . 1 . . Robot Detection 1 | . . . . . . . . . . . . 1 . . Robots Hacked . | . . . . . . . . . . . . . . . Non-combat . | . . . . . . . . . . . . . . . Combat . | . . . . . . . . . . . . . . . Robot Hacks Applied . | . . . . . . . . . . . . . . . Relay Couplers Released 13 | . . . . . . . . . 8 . . 5 . . Machine Destruction 13 | . . . . . . . . . 8 . . 5 . . Robots Rewired . | . . . . . . . . . . . . . . . Allies Hacked . | . . . . . . . . . . . . . . . Hacks Repelled . | . . . . . . . . . . . . . . . Allies | -11 -10 -10 -9 -9 -9 -8 -8 -7 -7 -7 -6 -6 -6 -6 -------- Run | Scr Mat Min Mat Min Exi Min Mat Fac Gar Fac Fac Gar Fac Ext Total Allies 13 | . . 3 . . . . . . . 3 . . . 7 Largest Group 4 | . . 3 3 . . . . . . 3 2 . . 4 Highest-Rated Group 107 | . . 40 40 . . . . . . 93 62 . . 107 Highest-Rated Ally 37 | . . 16 16 . . . . . . 31 31 . . 37 Total Orders . | . . . . . . . . . . . . . . . Ally Attacks 63 | . . . 18 . . . . . . . 6 . . 39 Total Damage 915 | . . . 198 . . . . . . . 62 . . 655 Kills 10 | . . . 6 . . . . . . . . . . 4 Allies Corrupted . | . . . . . . . . . . . . . . . Allies Melted . | . . . . . . . . . . . . . . . Intel | -11 -10 -10 -9 -9 -9 -8 -8 -7 -7 -7 -6 -6 -6 -6 ------- Run | Scr Mat Min Mat Min Exi Min Mat Fac Gar Fac Fac Gar Fac Ext Robot Analysis Total 1 | . . . . . . . . 1 . . . . . . Derelict Logs Recovered 1 | . . 1 . . . . . . . . . . . . Drone Launches . | . . . . . . . . . . . . . . . Drone Recoveries . | . . . . . . . . . . . . . . . Exploration | -11 -10 -10 -9 -9 -9 -8 -8 -7 -7 -7 -6 -6 -6 -6 ------------- Run | Scr Mat Min Mat Min Exi Min Mat Fac Gar Fac Fac Gar Fac Ext Turns Passed 22167 | 65 988 1460 2695 164 472 257 4919 2111 1019 2582 401 708 2740 1586 Spaces Moved 10888 | 42 536 794 1236 71 258 123 2284 1132 483 1340 207 316 1348 718 Core 26 | 3 . . . . . . . . . . . . . 23 Treads 10455 | . 448 794 1236 71 258 123 2284 1132 483 1340 207 316 1348 415 Legs 278 | . . . . . . . . . . . . . . 278 Wheels 127 | 39 88 . . . . . . . . . . . . . Hover 2 | . . . . . . . . . . . . . . 2 Flight . | . . . . . . . . . . . . . . . Fastest Speed 50 | 50 90 160 180 180 180 180 180 160 160 160 160 180 160 50 Average Speed 173 | 87 148 160 180 180 180 186 180 166 169 174 177 182 179 171 Slowest Speed 270 | 90 160 160 200 180 180 200 200 180 180 180 180 220 180 270 Overloaded Moves . | . . . . . . . . . . . . . . . Propulsion Burnouts . | . . . . . . . . . . . . . . . Robots Hopped . | . . . . . . . . . . . . . . . Cave-ins Triggered . | . . . . . . . . . . . . . . . Exploration Rate (%) 48 | 3 79 100 96 11 65 33 95 27 67 32 5 57 19 45 Regions Visited 14 Branch Regions 5 Pre-discovered Areas 1 | . . 1 . . . . . . . . . . . . Known Exits Taken 6 | . 1 1 1 . . 1 . 1 . . 1 . . . Unknown Exits Taken 6 | 1 . . . 1 1 . 1 . . 1 . . 1 . Scrap Searched 3 | . . 3 . . . . . . . . . . . . Spaces Dug 27 | . . . . . . . 12 1 . 7 . . 6 1 Terrain Destroyed 111 | . . . 1 . . . 21 2 5 60 . 3 6 13 Melee 1 | . . . . . . . . . . . . . . 1 Projectile 54 | . . . . . . . 21 2 . 13 . . 6 12 AOE 56 | . . . 1 . . . . . 5 47 . 3 . . Terrain Rammed . | . . . . . . . . . . . . . . . Walls Destroyed . | . . . . . . . . . . . . . . . Machines Disabled . | . . . . . . . . . . . . . . . Actions | -11 -10 -10 -9 -9 -9 -8 -8 -7 -7 -7 -6 -6 -6 -6 --------- Run | Scr Mat Min Mat Min Exi Min Mat Fac Gar Fac Fac Gar Fac Ext Total 12981 | 66 635 890 1539 83 267 142 2848 1298 585 1484 239 389 1574 942 Wait 852 | . 20 14 78 . . 12 314 95 10 49 22 21 143 74 Move 10874 | 41 535 793 1235 70 257 122 2283 1131 482 1339 206 315 1347 718 Hop . | . . . . . . . . . . . . . . . Pick Up 233 | 15 12 14 56 . 4 1 46 12 5 17 2 7 15 27 Fast Attach . | . . . . . . . . . . . . . . . Attach 95 | 7 4 4 15 . . . 9 3 4 8 2 6 7 26 Detach . | . . . . . . . . . . . . . . . Swap 147 | . 6 6 27 1 2 1 36 10 17 12 4 6 6 13 Drop 136 | 1 9 6 38 . 4 1 35 9 3 10 1 . 7 12 Fire 620 | 2 49 53 90 12 . 5 125 38 60 49 . 28 45 64 Melee 4 | . . . . . . . . . . . . . . 4 Ram . | . . . . . . . . . . . . . . . Kick . | . . . . . . . . . . . . . . . Crush . | . . . . . . . . . . . . . . . Escape Stasis 20 | . . . . . . . . . 4 . 2 6 4 4 Rewire . | . . . . . . . . . . . . . . . Trap . | . . . . . . . . . . . . . . . Miscellaneous . | . . . . . . . . . . . . . . . Route ------- -11/Scrapyard -10/Materials (discovered 3 exits: *Mat x2 / *Min) -10/Mines (discovered 2 exits: *Mat x2) -9/Materials (discovered 7 exits: *Mat x3 / *Min x2 / *Sto x2) -9/Mines -9/Exiles -8/Mines -8/Materials (discovered 2 exits: *Fac x2) -7/Factory (discovered 4 exits: *Fac / Low x2 / Gar) -7/Garrison (discovered 2 exits: *Fac x2) -7/Factory -6/Factory -6/Garrison (discovered 2 exits: *Fac x2) -6/Factory -6/Extension History --------- Turn | Location | Event 19 | -11/Scrapyard | Discovered new exit (range 15) 66 | -11/Scrapyard | Entered Materials 89 | -10/Materials | Discovered new exit (range 16) 306 | -10/Materials | Build established: Mutant 746 | -10/Materials | Identified exit to Mines 823 | -10/Materials | Repaired Lgt. Treads 832 | -10/Materials | Discovered new exit (range 7) 842 | -10/Materials | Identified exit to Materials 954 | -10/Materials | Central database locked down 986 | -10/Materials | Discovered exit to Materials (range 3) 1054 | -10/Materials | Entered Mines 1122 | -10/Mines | Received a Rocket Launcher from a helpful Derelict 1152 | -10/Mines | Core integrity fell below 50% 1254 | -10/Mines | Discovered exit to Materials (range 5) 1619 | -10/Mines | Build established: Scavenger-Mutant 1712 | -10/Mines | Core integrity fell below 20% 2178 | -10/Mines | Discovered exit to Materials (range 10) 2430 | -10/Mines | Assisted by bots powering up and referring to "LRC-V3" 2434 | -10/Mines | Learned location of Mines (-8) 2514 | -10/Mines | Entered Materials 2514 | -9/Materials | Accompanied by 3 allies 2514 | -9/Materials | Evolved 2 slots: Utility x2 2845 | -9/Materials | Lost 4 parts (1n3w) 2857 | -9/Materials | Destroyed 9 combat bots 3121 | -9/Materials | Discovered new exit (range 4) 3135 | -9/Materials | Identified exit to Mines 3202 | -9/Materials | Repaired Lgt. Treads 3220 | -9/Materials | Discovered new exit (range 15) 3277 | -9/Materials | Identified exit to Materials 3328 | -9/Materials | Build established: Mutant 3595 | -9/Materials | Discovered exit to Mines (range 11) 3749 | -9/Materials | Discovered new exit (range 4) 4163 | -9/Materials | Identified exit to Storage 4234 | -9/Materials | Discovered exit to Materials (range 9) 4457 | -9/Materials | Build established: Scavenger-Mutant 4702 | -9/Materials | Discovered exit to Materials (range 9) 5209 | -9/Materials | Entered Mines 5210 | -9/Mines | Assembled infested the area 5306 | -9/Mines | Met 8R-AWN 5314 | -9/Mines | Build established: Mutant 5366 | -9/Mines | Discovered new exit (range 5) 5373 | -9/Mines | Entered Exiles 5415 | -9/Exiles | Welcomed by 8R-AWN 5449 | -9/Exiles | Met EX-HEX 5501 | -9/Exiles | Met EX-BIN 5523 | -9/Exiles | Aligned with FarCom system 5525 | -9/Exiles | Given EX-Vault access code 5584 | -9/Exiles | Opened EX-Vault 5597 | -9/Exiles | Found 0b10 Alert Chip 5638 | -9/Exiles | Warned to stay clear of 0b10 Research branches 5686 | -9/Exiles | Met EX-DEC 5823 | -9/Exiles | Discovered new exit (range 12) 5845 | -9/Exiles | Left Exiles lab with 0b10 Alert Chip 5845 | -9/Exiles | Entered Mines 6017 | -8/Mines | Core integrity fell below 50% 6076 | -8/Mines | Discovered exit to Materials (range 8) 6102 | -8/Mines | Entered Materials 6102 | -8/Materials | Evolved 2 slots: Propulsion x1, Utility x1 6310 | -8/Materials | Build established: Hauler-Mutant 7936 | -8/Materials | Discovered new exit (range 6) 9395 | -8/Materials | Destroyed 7 combat bots 9743 | -8/Materials | Build established: Scavenger-Mutant 9850 | -8/Materials | Discovered new exit (range 13) 10606 | -8/Materials | Build established: Hauler-Mutant 11021 | -8/Materials | Entered Factory 11021 | -7/Factory | Evolved 2 slots: Propulsion x1, Utility x1 11276 | -7/Factory | Identified exit to Lower Caves 11623 | -7/Factory | Discovered new exit (range 5) 11771 | -7/Factory | Fabricated Cooling System (x1) 12984 | -7/Factory | Repaired Imp. Treads 13130 | -7/Factory | Identified exit to Garrison 13132 | -7/Factory | Entered Garrison 13224 | -7/Garrison | Triggered checkpoint 13319 | -7/Garrison | Garrison Relay disabled 13394 | -7/Garrison | Triggered checkpoint 13413 | -7/Garrison | Triggered checkpoint 13571 | -7/Garrison | Triggered checkpoint 13595 | -7/Garrison | Triggered checkpoint 13756 | -7/Garrison | Discovered new exit (range 15) 13818 | -7/Garrison | Triggered checkpoint 13882 | -7/Garrison | Garrison Relay disabled 14115 | -7/Garrison | Discovered new exit (range 9) 14144 | -7/Garrison | Installed Relay Interface Framework 14151 | -7/Garrison | Entered Factory 14951 | -7/Factory | First assault squad dispatched 16348 | -7/Factory | Discovered new exit (range 5) 16436 | -7/Factory | Repaired Imp. Treads 16642 | -7/Factory | Allied Derelicts emerged from ambush trap array 16733 | -7/Factory | Entered another Factory area 16733 | -6/Factory | Accompanied by 2 allies 16733 | -6/Factory | Evolved 2 slots: Power x1, Utility x1 17127 | -6/Factory | Identified exit to Garrison 17134 | -6/Factory | Entered Garrison 17200 | -6/Garrison | Triggered checkpoint 17227 | -6/Garrison | Garrison Relay disabled 17300 | -6/Garrison | Triggered checkpoint 17309 | -6/Garrison | Triggered checkpoint 17316 | -6/Garrison | Spotted B-75 Beast 17350 | -6/Garrison | Destroyed B-75 Beast 17378 | -6/Garrison | Lost 5 parts (1p3n1w) 17508 | -6/Garrison | Triggered checkpoint 17595 | -6/Garrison | Discovered new exit (range 14) 17734 | -6/Garrison | Build established: Scavenger-Mutant 17811 | -6/Garrison | Discovered new exit (range 8) 17833 | -6/Garrison | Expanded RIF knowledge: Robot Detection 17842 | -6/Garrison | Entered Factory 19054 | -6/Factory | Repaired Imp. Medium Treads 20557 | -6/Factory | Discovered new exit (range 15) 20582 | -6/Factory | Entered Extension 20884 | -6/Extension | Rescued a captive Derelict 20884 | -6/Extension | Rescued a captive Derelict 21032 | -6/Extension | Rescued a captive Derelict 21077 | -6/Extension | Rescued a captive Derelict 21245 | -6/Extension | Lost 8 parts (1p4n2u1w) 21271 | -6/Extension | Rescued a captive Derelict 21273 | -6/Extension | Rescued a captive Derelict 21288 | -6/Extension | Rescued a captive Derelict 21407 | -6/Extension | Disrupted transfer network 21416 | -6/Extension | Spotted B-75 Beast 21590 | -6/Extension | Lost 3 parts (1u2w) 22114 | -6/Extension | Spotted B-75 Beast 22145 | -6/Extension | Core integrity fell below 50% 22163 | -6/Extension | Core integrity fell below 20% 22168 | -6/Extension | Destroyed by B-75 Beast with Heavy Plasma Cannon Last Messages --------------- 22138_ Gravmag System destroyed. 22138_ Imp. Deuterium Engine destroyed. 22138_ Knocked back. 22139_ Gravmag System destroyed. 22141_ Acquired Lrg. Storage Unit. 22143_ Dropped Hcp. Storage Unit. 22143_ Knocked back. 22144_ Acquired 65 matter. 22144_ R-10 Processor knocked back. 22146_ Axe destroyed. 22147_ Acquired Carbon-fiber Leg. 22148_ Carbon-fiber Leg destroyed. 22149_ Dropped Lrg. Storage Unit. 22150_ Knocked back. 22150_ Cooling System destroyed. 22150_ Dropped Energy Well. 22151_ Imp. Gravmag System destroyed. 22155_ Door Terminal disabled. 22156_ U-05 Engineer destroyed. 22159_ Carbon-fiber Leg destroyed. Map ----- +----------------------------------------------------+ | ????????????# #???#=#????????????????????????????? | | ????????????###???#!#????????????????????????????? | | ??????????????????#=#????????????????????????????? | | ??????????????????#%#????????????????????????????? | | ??????????????????#%#????????? #?????????????????? | | ??????????????????#%#????????? #?????????????????? | | ??????????????????#=#????????? #?????????????????? | | ??????????????????#!#????????? #?????????????????? | | ??????????????????#*#????????? #?????????????????? | | ??????????????????#%#?######?? #?????????????????? | | ????????????????###%### #; ### ###???????????????? | | ????????????????#"" = " ""#???????????????? | | ????????????????# R " ##??????????????? | | ????????????????# * ==! ;#??????????????? | | ????????????????# ]!*%!! #???????????????? | | ???????????###### =!!=! ###########?????? | | ???????? ]]] ????? | | ?????? ????? | | ??????? ????? | | ??????? BB ????? | | ???????? u uBBBBkR kt ????? | | ????????######### =BB ###########?????? | | ????????????????# |%! #???????????????? | | ????????????????# != #???????????????? | | ????????????????# #???????????????? | | ????????????????# @ #???????????????? | | ????????????????#####; #"""#######???????????????? | | ????????????????????##"#?????????????????????????? | | ?????????????????????# #?????????????????????????? | | | | | | | | | | | | | | | | | | | | | | | | | | | | | | | | | | | | | | | | | | | +----------------------------------------------------+ Best States ------------- Heat Dissipation 95 Energy Generation 29 Energy Capacity 980 Matter Stores 300 Matter Capacity 300 Sight Range 16 Robot Scan Range 13 Terrain Scan Density 10 Armor Coverage 450 Resistance: TH 15 Resistance: EM 15 Evasion (%) 50 Recoil Reduction 4 Item Schematics ----------------- Med. Storage Unit | -10/Materials | Hacked Lrg. Storage Unit | -10/Materials | Hacked Cooling System | -9/Materials | Hacked Imp. Treads | -9/Materials | Scanalyzed Imp. Sensor Array | -9/Materials | Scanalyzed Cld. Ion Engine | -9/Materials | Scanalyzed Imp. Light Armor Plating | -8/Materials | Hacked Hrd. Medium Armor Plating | -8/Materials | Scanalyzed Shock Bomb Launcher | -8/Materials | Scanalyzed Imp. Cooling System | -7/Factory | Hacked System Backup Module | -7/Factory | Hacked Insulated Plating | -7/Factory | Scanalyzed Gravmag System | -7/Factory | Scanalyzed Proton Missile Launcher | -7/Factory | Scanalyzed Spear | -7/Factory | Scanalyzed Med. Treads | -7/Factory | Scanalyzed Imp. Medium Treads | -6/Factory | Scanalyzed Robot Schematics ------------------ K-01 Serf | -6/Factory | Hacked Fabricated ------------ Cooling System | x1 | -7/Factory Alien Tech Used ----------------- None Achievements -------------- None Challenges ------------ None Game ------ Seed LayeredArmageddonNanosword Manual? 0 Play Time 02:55:22 Cumulative 86.6 hours Start 2021.04.27 @ 10:57:20 End 2021.05.14 @ 11:11:40 Sessions 35 Manual Loads 0 Difficulty Rogue Special Mode None Game No. 55 Rogue 55 Adventurer 0 Explorer 0 Win Type - Total 0 Types 0/0/0/0/0/0/0/0/0 Lore% 25 Gallery% 44 Achievement% 31 Wizard Run 0 Options --------- ASCII 0 Keyboard 0 Movement Mouse Keybinds 0 Fullscreen 2 Font 18/SmallcapsGlow Map View 76x50 Tactical HUD 1 Map Filters NONE Filters NONE Steam 1 RUN: f5e63e8d-4769-4179-b865-e13e71098819